bitfinex/quotes_BTCUSD_20241009
["timestamp","ask_amount","ask_price","bid_price","bid_amount"]
[1728509334137,0.01008741,60804.0,60796.0,0.328968]
[1728509334372,0.01008741,60804.0,60798.0,0.493434]
[1728509334598,0.01008741,60804.0,60796.0,0.328968]
[1728509334599,0.01008741,60804.0,60797.0,0.328959]
[1728509334846,0.17455041,60804.0,60798.0,0.164477]
[1728509335118,0.01008741,60804.0,60797.0,0.328959]
[1728509335582,0.164466,60803.0,60798.0,0.164477]
[1728509335802,0.164466,60803.0,60797.0,0.164481]
[1728509336688,0.49337,60807.0,60800.0,0.164473]
[1728509336918,0.166465,60803.0,60797.0,0.164481]
[1728509337132,0.164465,60803.0,60797.0,0.164481]
[1728509337354,0.166465,60803.0,60797.0,0.164481]
[1728509338002,0.002,60803.0,60795.0,0.328973]
[1728509338224,0.164469,60802.0,60796.0,0.164483]
[1728509338685,0.33381346,60816.0,60801.0,0.24778644]
[1728509338883,0.006,60807.0,60801.0,0.328938]
[1728509339099,0.00670185,60807.0,60805.0,0.164458]
[1728509339336,0.00670185,60807.0,60804.0,0.164461]
[1728509339552,0.00570185,60807.0,60804.0,0.164461]
[1728509339782,0.00570185,60807.0,60804.0,0.328924]
[1728509340001,0.328877,60813.0,60802.0,0.328934]
[1728509340240,0.003,60807.0,60804.0,0.16446]
[1728509340463,0.003,60807.0,60802.0,0.328934]
[1728509340681,0.004,60807.0,60804.0,0.164462]
[1728509341357,0.004,60807.0,60803.0,0.328928]
[1728509341603,0.004,60807.0,60804.0,0.164462]
[1728509341840,0.006,60807.0,60803.0,0.164464]
[1728509342066,0.005,60807.0,60802.0,0.164466]
[1728509342307,0.005,60807.0,60804.0,0.164461]
[1728509342897,0.005,60807.0,60806.0,0.164457]
[1728509343146,0.164442,60812.0,60806.0,0.164457]
[1728509343553,0.001,60807.0,60805.0,0.328916]
[1728509344000,0.001,60807.0,60806.0,0.164457]
[1728509344996,0.002,60807.0,60804.0,0.328924]
[1728509345248,0.002,60807.0,60806.0,0.164457]
[1728509345539,0.001,60812.0,60811.0,0.164443]
[1728509345698,0.04860405,60817.0,60816.0,0.16443]
[1728509345934,0.04860405,60817.0,60814.0,0.328867]
[1728509346180,0.04860405,60817.0,60815.0,0.164432]
[1728509347333,0.04860405,60817.0,60814.0,0.328867]
[1728509347334,0.04860405,60817.0,60814.0,0.164434]
[1728509347552,0.04960405,60817.0,60816.0,0.001]
[1728509348017,0.05560405,60817.0,60816.0,0.002]
[1728509348513,0.04960405,60817.0,60816.0,0.001]
[1728509348738,0.05460405,60817.0,60815.0,0.164432]
[1728509348939,0.05560405,60817.0,60815.0,0.165432]
[1728509349320,0.06060405,60817.0,60816.0,0.001]
[1728509349545,0.04860405,60817.0,60814.0,0.164435]
[1728509349741,0.04860405,60817.0,60816.0,0.001]
[1728509349742,0.04960405,60817.0,60816.0,0.001]
[1728509349926,0.05560405,60817.0,60816.0,0.001]
[1728509350152,0.05560405,60817.0,60816.0,0.16543]
[1728509350380,0.05560405,60817.0,60816.0,0.16443]
[1728509350381,0.05460405,60817.0,60816.0,0.16443]
[1728509351255,0.05460405,60817.0,60812.0,0.33571099]
[1728509351457,0.05460405,60817.0,60816.0,0.001]
[1728509351458,0.06060405,60817.0,60816.0,0.001]
[1728509351695,0.05460405,60817.0,60813.0,0.164436]
[1728509351903,0.05560405,60817.0,60814.0,0.165434]
[1728509352336,0.04860405,60817.0,60812.0,0.49332]
[1728509352544,0.04860405,60817.0,60816.0,0.011]
[1728509352752,0.04860405,60817.0,60816.0,0.005]
[1728509353126,0.05060405,60817.0,60815.0,0.164431]
[1728509353291,0.05160405,60817.0,60815.0,0.164431]
[1728509354098,0.05242005,60817.0,60815.0,0.164431]
[1728509354838,0.05542005,60817.0,60815.0,0.164431]
[1728509355058,0.05042005,60817.0,60815.0,0.164431]
[1728509355836,0.04942005,60817.0,60815.0,0.164431]
[1728509356091,0.05342005,60817.0,60815.0,0.164431]
[1728509356765,0.04942005,60817.0,60815.0,0.164431]
[1728509357953,0.05282009,60817.0,60815.0,0.164431]
[1728509358171,0.001816,60817.0,60814.0,0.164434]
[1728509358375,0.000816,60817.0,60814.0,0.164434]
[1728509358596,0.192516,60817.0,60811.0,0.328884]
[1728509358822,0.188516,60817.0,60814.0,0.164433]
[1728509359051,0.188516,60817.0,60811.0,0.328884]
[1728509359299,0.190516,60817.0,60814.0,0.164435]
[1728509359501,0.191516,60817.0,60815.0,0.164432]
[1728509359712,0.191516,60817.0,60814.0,0.164434]
[1728509359901,0.191516,60817.0,60815.0,0.164432]
[1728509361032,0.000817,60822.0,60814.0,0.328868]
[1728509361266,0.002,60817.0,60816.0,0.164429]
[1728509361722,0.000817,60822.0,60818.0,0.164424]
[1728509362184,0.000817,60822.0,60815.0,0.328861]
[1728509362398,0.000817,60822.0,60817.0,0.164427]
[1728509362831,0.000817,60822.0,60818.0,0.164424]
[1728509363182,0.000817,60822.0,60817.0,0.164426]
[1728509363387,0.000817,60822.0,60818.0,0.164424]
[1728509363857,0.000817,60822.0,60817.0,0.164427]
[1728509364417,0.000817,60822.0,60816.0,0.24778644]
[1728509364418,0.000817,60822.0,60818.0,0.164424]
[1728509364556,0.001817,60822.0,60817.0,0.164425]
[1728509364805,0.004817,60822.0,60817.0,0.164425]
[1728509364981,0.003817,60822.0,60817.0,0.164425]
[1728509365188,0.004817,60822.0,60818.0,0.164424]
[1728509366170,0.001817,60822.0,60818.0,0.164424]
[1728509366389,0.004817,60822.0,60818.0,0.165424]
[1728509366884,0.004817,60822.0,60820.0,0.164418]
[1728509367106,0.004817,60822.0,60819.0,0.328843]
[1728509367107,0.003817,60822.0,60819.0,0.328843]
[1728509367569,0.004817,60822.0,60818.0,0.001]
[1728509367794,0.001817,60822.0,60819.0,0.164421]
[1728509368013,0.003817,60822.0,60819.0,0.164421]
[1728509368239,0.003817,60822.0,60819.0,0.32884]
[1728509368461,0.003817,60822.0,60820.0,0.164418]
[1728509368700,0.004817,60822.0,60820.0,0.164418]
[1728509368928,0.001817,60822.0,60820.0,0.164418]
[1728509369144,0.002817,60822.0,60821.0,0.164416]
[1728509369359,0.003817,60822.0,60821.0,0.164416]
[1728509369619,0.001817,60822.0,60821.0,0.164416]
[1728509369826,0.001817,60822.0,60819.0,0.164421]
[1728509370115,0.001817,60822.0,60821.0,0.164416]
[1728509370337,0.000817,60822.0,60820.0,0.164419]
[1728509370784,0.001817,60822.0,60820.0,0.164419]
[1728509371271,0.002817,60822.0,60820.0,0.164419]
[1728509371484,0.002817,60822.0,60820.0,0.166419]
[1728509371715,0.002817,60822.0,60820.0,0.002]
[1728509371950,0.002817,60822.0,60820.0,0.005]
[1728509372907,0.002817,60822.0,60820.0,0.169419]
[1728509373374,0.002817,60822.0,60820.0,0.005]
[1728509375191,0.002817,60822.0,60820.0,0.169418]
[1728509376280,0.002817,60822.0,60820.0,0.005]
[1728509377624,0.348616,60821.0,60820.0,0.005]
[1728509377839,0.426916,60821.0,60820.0,0.005]
[1728509378266,0.47551748,60821.0,60820.0,0.005]
[1728509378480,0.52633933,60821.0,60820.0,0.005]
[1728509378693,0.52633933,60821.0,60820.0,0.002]
[1728509379138,0.52833933,60821.0,60820.0,0.002]
[1728509379355,0.38822408,60821.0,60817.0,0.001632]
[1728509379573,0.21310693,60819.0,60817.0,0.001632]
[1728509380221,0.002,60821.0,60817.0,0.001632]
[1728509380502,0.16442,60820.0,60817.0,0.001632]
[1728509380699,0.168416,60821.0,60820.0,0.001]
[1728509380914,0.167416,60821.0,60820.0,0.001]
[1728509381126,0.37751593,60821.0,60817.0,0.001632]
[1728509381353,0.21513208,60819.0,60817.0,0.001632]
[1728509381582,0.165423,60819.0,60817.0,0.001632]
[1728509381859,0.21413139,60819.0,60817.0,0.001632]
[1728509382073,0.04870839,60818.0,60817.0,0.001632]
[1728509383024,0.164423,60819.0,60817.0,0.001632]
[1728509383463,0.04870839,60818.0,60817.0,0.001632]
[1728509383724,0.04970839,60818.0,60817.0,0.001632]
[1728509384183,0.21313339,60818.0,60817.0,0.001632]
[1728509384442,0.23748758,60818.0,60817.0,0.001632]
[1728509385340,0.07606258,60818.0,60817.0,0.001632]
[1728509385591,0.003,60818.0,60817.0,0.166059]
[1728509386273,0.004,60818.0,60817.0,0.166059]
[1728509386492,0.05276508,60818.0,60817.0,0.166059]
[1728509386714,0.05176508,60818.0,60817.0,0.166059]
[1728509386954,0.04876508,60818.0,60817.0,0.166059]
[1728509387191,0.04876508,60819.0,60817.0,0.007632]
[1728509387397,0.04958208,60822.0,60819.0,0.328843]
[1728509387625,0.04876508,60821.0,60820.0,0.164419]
[1728509387838,0.07387958,60822.0,60821.0,0.164416]
[1728509388289,0.000817,60822.0,60821.0,0.164416]
[1728509388734,0.04960272,60822.0,60821.0,0.164416]
[1728509389172,0.000817,60822.0,60821.0,0.164416]
[1728509389413,0.04960272,60822.0,60821.0,0.164416]
[1728509390083,0.05060272,60822.0,60821.0,0.164416]
[1728509390308,0.05062097,60822.0,60821.0,0.164416]
[1728509390531,0.05262097,60822.0,60820.0,0.00678931]
[1728509390752,0.05262097,60822.0,60821.0,0.164416]
[1728509391596,0.003817,60822.0,60821.0,0.164416]
[1728509392050,0.002817,60822.0,60821.0,0.164416]
[1728509392266,0.003817,60822.0,60821.0,0.164416]
[1728509392715,0.0516165,60822.0,60821.0,0.164416]
[1728509392929,0.0526165,60822.0,60821.0,0.164416]
[1728509395406,0.05261286,60822.0,60821.0,0.164416]
[1728509399085,0.05260784,60822.0,60821.0,0.164416]
[1728509399315,0.003817,60822.0,60821.0,0.164416]
[1728509408999,0.003817,60822.0,60819.0,0.00678085]
[1728509409197,0.003817,60822.0,60821.0,0.164416]
[1728509410050,0.002817,60822.0,60821.0,0.164416]
[1728509410256,0.002817,60822.0,60817.0,0.001632]
[1728509410257,0.36528365,60822.0,60817.0,0.001632]
[1728509410474,0.21323332,60819.0,60817.0,0.001632]
[1728509410714,0.04881132,60818.0,60817.0,0.001632]
[1728509411185,0.21323632,60818.0,60817.0,0.001632]
[1728509411439,0.04881132,60818.0,60817.0,0.001632]
[1728509411670,0.21323632,60818.0,60817.0,0.004632]
[1728509411930,0.23764198,60818.0,60817.0,0.004632]
[1728509412368,0.07321698,60819.0,60818.0,0.164425]
[1728509412588,0.23764098,60819.0,60817.0,0.004632]
[1728509412851,0.23764098,60819.0,60817.0,0.005632]
[1728509413082,0.23764098,60819.0,60817.0,0.002632]
[1728509413297,0.23764098,60819.0,60817.0,0.001632]
[1728509413514,0.23764098,60819.0,60817.0,0.004632]
[1728509413731,0.164425,60818.0,60817.0,0.001632]
[1728509413999,0.07421698,60819.0,60817.0,0.001632]
[1728509414263,0.24163998,60819.0,60817.0,0.001632]
[1728509415103,0.24063998,60819.0,60817.0,0.001632]
[1728509415539,0.07721698,60819.0,60817.0,0.001632]
[1728509415763,0.164425,60818.0,60817.0,0.001632]
[1728509416865,0.159425,60818.0,60817.0,0.001632]
[1728509417088,0.21225348,60818.0,60817.0,0.001632]
[1728509417776,0.21956097,60818.0,60817.0,0.001632]
[1728509418003,0.06013597,60818.0,60817.0,0.001632]
[1728509418225,0.01130749,60818.0,60817.0,0.166059]
[1728509419562,0.01030749,60818.0,60817.0,0.166059]
[1728509420003,0.00830749,60818.0,60817.0,0.166059]
[1728509420216,0.00930749,60818.0,60817.0,0.166059]
[1728509420659,0.00830749,60818.0,60817.0,0.166059]
[1728509420854,0.00930749,60818.0,60817.0,0.166059]
[1728509427218,0.05813597,60818.0,60817.0,0.166059]
[1728509429345,0.05813554,60818.0,60817.0,0.166059]
[1728509431346,0.00930749,60818.0,60817.0,0.166059]
[1728509431747,0.00930749,60818.0,60817.0,0.162059]
[1728509431968,0.002,60818.0,60817.0,0.162059]
[1728509436421,0.002,60818.0,60817.0,0.163693]
[1728509436661,0.001,60818.0,60817.0,0.163693]
[1728509436887,0.002,60818.0,60817.0,0.163693]
[1728509437344,0.001,60818.0,60817.0,0.163693]
[1728509437587,0.003,60818.0,60817.0,0.163693]
[1728509446022,0.003,60818.0,60817.0,0.001634]
[1728509446279,0.18451608,60818.0,60817.0,0.001634]
[1728509446508,0.29147693,60818.0,60817.0,0.001634]
[1728509446748,0.29147982,60818.0,60817.0,0.001634]
[1728509447177,0.45590482,60818.0,60817.0,0.001634]
[1728509447399,0.55352605,60818.0,60817.0,0.001634]
[1728509447630,0.3984792,60818.0,60817.0,0.001634]
[1728509447855,0.57866731,60818.0,60817.0,0.001634]
[1728509448349,0.63033675,60818.0,60817.0,0.001634]
[1728509448837,0.62933675,60818.0,60817.0,0.001634]
[1728509449053,0.57848431,60818.0,60817.0,0.001634]
[1728509449503,0.57648431,60818.0,60817.0,0.001634]
[1728509449981,0.57948431,60818.0,60817.0,0.001634]
[1728509450217,0.58448431,60818.0,60817.0,0.002634]
[1728509450463,0.83987153,60818.0,60817.0,0.002634]
[1728509450739,0.83987153,60818.0,60808.0,0.24778644]
[1728509450740,0.340349,60809.0,60808.0,0.24778644]
[1728509450965,0.81937787,60809.0,60808.0,0.24778644]
[1728509451455,0.16446,60805.0,60801.0,0.24778644]
[1728509451697,0.69791584,60805.0,60801.0,0.24778644]
[1728509451967,0.65839204,60805.0,60794.0,0.41227544]
[1728509452195,0.64314312,60805.0,60794.0,0.24778644]
[1728509452430,0.95597077,60805.0,60794.0,0.24778644]
[1728509452654,0.82416813,60805.0,60794.0,0.24778644]
[1728509453103,0.84716813,60805.0,60794.0,0.24778644]
[1728509453379,0.89791923,60805.0,60795.0,0.24778644]
[1728509453626,1.04622844,60805.0,60795.0,0.24778644]
[1728509453849,1.3173869,60805.0,60804.0,0.002632]
[1728509454101,0.34153646,60796.0,60795.0,0.24778644]
[1728509454345,0.82239213,60796.0,60795.0,0.24778644]
[1728509454589,0.164506,60788.0,60787.0,0.24778644]
[1728509454857,0.35114444,60788.0,60787.0,0.24778644]
[1728509455120,0.35114444,60788.0,60785.0,0.010132]
[1728509455121,0.18663844,60788.0,60785.0,0.010132]
[1728509455366,0.5965499,60786.0,60785.0,0.010132]
[1728509455619,0.71059893,60786.0,60785.0,0.010132]
[1728509455971,0.87481899,60786.0,60785.0,0.010132]
[1728509456184,0.19447946,60780.0,60772.0,0.24778644]
[1728509456380,0.71508116,60780.0,60772.0,0.24778644]
[1728509456591,0.8273487,60780.0,60772.0,0.24778644]
[1728509456812,0.90015731,60780.0,60772.0,0.24778644]
[1728509457280,0.8253487,60780.0,60772.0,0.24778644]
[1728509457506,0.8273487,60780.0,60772.0,0.24778644]
[1728509457725,0.8343487,60780.0,60779.0,0.002632]
[1728509458190,0.88583097,60780.0,60779.0,0.003632]
[1728509458465,0.02517079,60780.0,60779.0,0.003632]
[1728509458899,0.01,60780.0,60779.0,0.003632]
[1728509459351,0.007,60780.0,60779.0,0.002632]
[1728509459615,0.16452,60783.0,60779.0,0.001632]
[1728509460079,0.005,60780.0,60779.0,0.002632]
[1728509460538,0.005,60780.0,60779.0,0.167162]
[1728509460732,0.008,60780.0,60779.0,0.003632]
[1728509460991,0.003,60780.0,60779.0,0.002632]
[1728509461223,0.164524,60782.0,60779.0,0.002632]
[1728509461464,0.003,60780.0,60779.0,0.003632]
[1728509461708,0.003,60780.0,60779.0,0.41494844]
[1728509461911,0.164518,60784.0,60779.0,0.166162]
[1728509462363,0.003,60780.0,60779.0,0.166162]
[1728509463278,0.003,60780.0,60779.0,0.001632]
[1728509463513,0.167527,60780.0,60779.0,0.001632]
[1728509463760,0.005,60780.0,60779.0,0.001632]
[1728509463981,0.329041,60783.0,60779.0,0.001632]
[1728509464211,0.164527,60780.0,60779.0,0.001632]
[1728509464431,0.167527,60780.0,60779.0,0.001632]
[1728509465106,0.172527,60780.0,60779.0,0.001632]
[1728509465298,0.164527,60780.0,60779.0,0.001632]
[1728509465549,0.32903,60785.0,60779.0,0.001632]
[1728509465768,0.167527,60780.0,60779.0,0.001632]
[1728509465986,0.003,60780.0,60779.0,0.001632]
[1728509466733,0.008,60780.0,60779.0,0.001632]
[1728509466948,0.005,60780.0,60779.0,0.001632]
[1728509467428,0.169527,60780.0,60779.0,0.001632]
[1728509467650,0.54405807,60780.0,60779.0,0.002632]
[1728509467869,0.64115807,60780.0,60779.0,0.002632]
[1728509468088,0.64115807,60780.0,60779.0,0.001632]
[1728509468334,0.64911053,60780.0,60779.0,0.001632]
[1728509468787,0.164552,60771.0,60768.0,0.001632]
[1728509469241,0.329095,60773.0,60768.0,0.001632]
[1728509469459,0.164555,60770.0,60768.0,0.001632]
[1728509469701,0.16455,60772.0,60768.0,0.16619]
[1728509470163,0.164552,60771.0,60768.0,0.001632]
[1728509470401,0.164552,60771.0,60768.0,0.006632]
[1728509470402,0.164554,60771.0,60768.0,0.006632]
[1728509470602,0.164554,60771.0,60768.0,0.012632]
[1728509470820,0.164555,60770.0,60768.0,0.007632]
[1728509471069,0.3291,60772.0,60768.0,0.012632]
[1728509471343,0.164557,60769.0,60768.0,0.006632]
[1728509471539,0.164555,60770.0,60768.0,0.006632]
[1728509471793,0.18734787,60773.0,60768.0,0.006632]
[1728509472019,0.164552,60771.0,60768.0,0.166191]
[1728509472238,0.164553,60771.0,60768.0,0.007632]
[1728509473554,0.164554,60770.0,60768.0,0.001632]
[1728509473783,0.35190487,60769.0,60768.0,0.001632]
[1728509475161,0.36702896,60769.0,60768.0,0.001632]
[1728509475383,0.35490487,60769.0,60768.0,0.001632]
[1728509475625,0.37002935,60769.0,60768.0,0.001632]
[1728509476072,0.57314903,60769.0,60768.0,0.001632]
[1728509476308,0.46982935,60769.0,60768.0,0.001632]
[1728509476528,0.54732935,60769.0,60768.0,0.001632]
[1728509476713,0.55032935,60769.0,60768.0,0.001632]
[1728509479789,0.71116699,60769.0,60768.0,0.001632]
[1728509480009,0.71611945,60769.0,60768.0,0.001632]
[1728509480910,0.85355289,60769.0,60768.0,0.001632]
[1728509483659,0.164565,60766.0,60765.0,0.001632]
[1728509483880,0.17968948,60766.0,60765.0,0.001632]
[1728509485009,0.17968948,60766.0,60765.0,0.002632]
[1728509485723,0.34049609,60766.0,60765.0,0.002632]
[1728509485974,0.164565,60766.0,60765.0,0.002632]
[1728509486173,0.17977549,60766.0,60765.0,0.002632]
[1728509487109,0.18277549,60766.0,60765.0,0.001632]
[1728509487583,0.18577549,60766.0,60765.0,0.002632]
[1728509487813,0.3495821,60766.0,60765.0,0.003632]
[1728509488281,0.3435821,60766.0,60765.0,0.002632]
[1728509488501,0.3495821,60766.0,60765.0,0.003632]
[1728509488953,0.3465821,60766.0,60765.0,0.002632]
[1728509489473,0.3495821,60766.0,60765.0,0.003632]
[1728509490800,0.35453456,60766.0,60765.0,0.003632]
[1728509491920,0.5153722,60766.0,60765.0,0.003632]
[1728509493051,0.6144722,60766.0,60765.0,0.003632]
[1728509493298,0.66517779,60766.0,60765.0,0.003632]
[1728509494193,0.6499673,60766.0,60765.0,0.003632]
[1728509495169,0.6651859,60766.0,60765.0,0.003632]
[1728509495620,0.0242186,60766.0,60765.0,0.1682]
[1728509496092,0.009,60766.0,60765.0,0.1682]
[1728509496798,0.006,60766.0,60765.0,0.32803764]
[1728509497014,0.009,60766.0,60765.0,0.42803764]
[1728509497453,0.003,60766.0,60765.0,0.52263764]
[1728509497638,0.003,60766.0,60765.0,0.60503764]
[1728509497860,0.003,60766.0,60765.0,0.60403764]
[1728509498129,0.24778644,60774.0,60773.0,0.164546]
[1728509498365,0.26302278,60774.0,60773.0,0.164546]
[1728509498602,0.01523634,60774.0,60773.0,0.164546]
[1728509499403,0.01623634,60774.0,60773.0,0.164546]
[1728509500693,0.01723634,60774.0,60773.0,0.164546]
[1728509500927,0.01723634,60774.0,60773.0,0.243646]
[1728509502313,0.01723634,60774.0,60773.0,0.25036381]
[1728509502508,0.002,60774.0,60773.0,0.25036381]
[1728509503460,0.002,60774.0,60773.0,0.60330145]
[1728509503679,0.002,60774.0,60773.0,0.77442245]
[1728509504374,0.001,60774.0,60773.0,0.77442245]
[1728509504640,0.000818,60779.0,60778.0,0.164533]
[1728509506258,0.000818,60779.0,60778.0,0.241533]
[1728509506478,0.000818,60779.0,60778.0,0.341533]
[1728509507181,0.000818,60779.0,60778.0,0.344533]
[1728509507620,0.000818,60779.0,60778.0,0.343533]
[1728509507840,0.000818,60779.0,60778.0,0.347533]
[1728509508066,0.24778644,60787.0,60782.0,0.329044]
[1728509508504,0.493489,60792.0,60782.0,0.329044]
[1728509508722,0.01519102,60791.0,60785.0,0.164511]
[1728509508942,0.493489,60792.0,60785.0,0.164511]
[1728509509191,0.493489,60792.0,60786.0,0.164511]
[1728509509192,0.01519101,60791.0,60786.0,0.164511]
[1728509509382,0.001,60787.0,60786.0,0.169431]
[1728509510761,0.003,60791.0,60787.0,0.164506]
[1728509510980,0.003,60791.0,60787.0,0.169426]
[1728509511212,0.003,60791.0,60787.0,0.00492]
[1728509511435,0.08531444,60794.0,60787.0,0.00492]
[1728509511662,0.164495,60792.0,60787.0,0.00492]
[1728509511883,0.164498,60791.0,60787.0,0.00492]
[1728509512381,0.169498,60791.0,60787.0,0.00592]
[1728509512593,0.172498,60791.0,60787.0,0.00692]
[1728509513274,0.26835846,60788.0,60787.0,0.00692]
[1728509513512,0.71112015,60788.0,60787.0,0.00592]
[1728509513991,0.71112015,60788.0,60787.0,0.00692]
[1728509514199,0.69594032,60788.0,60787.0,0.00492]
[1728509514465,0.70094032,60788.0,60787.0,0.00492]
[1728509514688,0.86474693,60788.0,60787.0,0.00492]
[1728509514915,0.85974693,60788.0,60787.0,0.00492]
[1728509515147,0.72394032,60788.0,60787.0,0.00592]
[1728509515401,0.72694032,60788.0,60787.0,0.00692]
[1728509516334,0.5375961,60788.0,60787.0,0.00692]
[1728509516561,0.79782435,60788.0,60787.0,0.00692]
[1728509516797,0.72694032,60788.0,60787.0,0.00692]
[1728509517024,0.72494032,60788.0,60787.0,0.00692]
[1728509517452,0.72694032,60788.0,60787.0,0.00692]
[1728509517924,0.88774693,60788.0,60787.0,0.00692]
[1728509518153,0.35188222,60776.0,60775.0,0.24778644]
[1728509518872,0.164546,60774.0,60768.0,0.16456]
[1728509519148,0.164544,60774.0,60768.0,0.493674]
[1728509519339,0.164544,60774.0,60768.0,0.164557]
[1728509519802,0.164544,60774.0,60769.0,0.164556]
[1728509520030,0.164546,60774.0,60768.0,0.164559]
[1728509520278,0.164546,60774.0,60769.0,0.04692]
[1728509520507,0.52742222,60776.0,60768.0,0.211479]
[1728509520775,0.18734422,60776.0,60770.0,0.164554]
[1728509520987,0.003,60774.0,60770.0,0.164554]
[1728509521235,0.166544,60774.0,60770.0,0.211474]
[1728509521472,0.18734422,60776.0,60770.0,0.04692]
[1728509521709,0.166544,60774.0,60770.0,0.04692]
[1728509522917,0.002,60774.0,60770.0,0.04692]
[1728509523149,0.164547,60773.0,60770.0,0.04692]
[1728509523632,0.16455,60772.0,60770.0,0.04692]
[1728509524122,0.164552,60771.0,60770.0,0.04692]
[1728509524603,0.18734422,60772.0,60770.0,0.04692]
[1728509524855,0.164552,60771.0,60770.0,0.04692]
[1728509526761,0.32838964,60771.0,60770.0,0.04692]
[1728509527213,0.33138964,60771.0,60770.0,0.04692]
[1728509529103,0.5049421,60771.0,60770.0,0.04692]
[1728509529322,0.57782671,60771.0,60770.0,0.04692]
[1728509529550,0.5049421,60771.0,60770.0,0.04692]
[1728509530019,0.5019421,60771.0,60770.0,0.04692]
[1728509530297,0.52933717,60771.0,60770.0,0.04792]
[1728509530501,0.5129421,60771.0,60770.0,0.04792]
[1728509530732,0.5129421,60771.0,60770.0,0.049556]
[1728509530951,0.5249421,60771.0,60770.0,0.050556]
[1728509531401,0.59782106,60771.0,60770.0,0.050556]
[1728509531631,0.75862767,60771.0,60770.0,0.050556]
[1728509531857,0.98809612,60771.0,60770.0,0.050556]
[1728509532110,1.10957108,60771.0,60770.0,0.050556]
[1728509533056,0.164584,60759.0,60758.0,0.24778644]
[1728509533346,0.64603571,60759.0,60758.0,0.24778644]
[1728509533560,0.16459,60757.0,60756.0,0.001634]
[1728509533815,0.32542764,60757.0,60756.0,0.001634]
[1728509534273,0.3303801,60757.0,60756.0,0.001634]
[1728509534957,0.49118671,60757.0,60756.0,0.001634]
[1728509535218,0.3443801,60757.0,60756.0,0.002634]
[1728509535448,0.3443801,60757.0,60756.0,0.084894]
[1728509536640,0.3443801,60757.0,60756.0,0.083894]
[1728509536882,0.3583801,60757.0,60756.0,0.083894]
[1728509537117,0.51918671,60757.0,60756.0,0.083894]
[1728509537345,0.70938671,60757.0,60756.0,0.083894]
[1728509537790,0.69738671,60757.0,60756.0,0.083894]
[1728509538009,0.68338671,60757.0,60756.0,0.083894]
[1728509538237,0.71138671,60757.0,60756.0,0.083894]
[1728509540341,0.19454746,60755.0,60754.0,0.001632]
[1728509540559,0.63982932,60755.0,60754.0,0.001632]
[1728509542419,0.63982932,60755.0,60754.0,0.083892]
[1728509542861,0.65382932,60755.0,60754.0,0.083892]
[1728509543076,0.66782932,60755.0,60754.0,0.083892]
[1728509543339,0.80063593,60755.0,60754.0,0.083892]
[1728509543588,0.82863593,60755.0,60754.0,0.083892]
[1728509547493,0.66782932,60755.0,60754.0,0.083892]
[1728509554230,0.71852983,60755.0,60754.0,0.083892]
[1728509557343,0.76705818,60755.0,60754.0,0.083892]
[1728509558260,0.78932236,60755.0,60754.0,0.083892]
[1728509558485,0.72511996,60755.0,60754.0,0.083892]
[1728509558732,0.88592657,60755.0,60754.0,0.083892]
[1728509559399,0.99277581,60755.0,60754.0,0.083892]
[1728509560307,1.08983251,60755.0,60754.0,0.083892]
[1728509562110,1.09183251,60755.0,60754.0,0.083892]
[1728509562352,0.99477581,60755.0,60754.0,0.083892]
[1728509564451,1.11667562,60755.0,60754.0,0.083892]
[1728509565363,0.99491751,60755.0,60754.0,0.083892]
[1728509567681,0.16957746,60744.0,60743.0,0.001632]
[1728509567914,0.3304151,60744.0,60743.0,0.001632]
[1728509568365,0.37918819,60744.0,60743.0,0.001632]
[1728509568838,0.48140517,60744.0,60743.0,0.001632]
[1728509569063,0.74864956,60744.0,60743.0,0.001632]
[1728509569291,0.93384272,60744.0,60743.0,0.001632]
[1728509569514,0.83629653,60744.0,60743.0,0.083892]
[1728509569737,0.85029653,60744.0,60743.0,0.083892]
[1728509570841,0.86429653,60744.0,60743.0,0.083892]
[1728509571124,0.82229653,60744.0,60743.0,0.083892]
[1728509571380,0.83629653,60744.0,60743.0,0.083892]
[1728509571597,0.95822927,60744.0,60743.0,0.083892]
[1728509571817,0.95952756,60744.0,60743.0,0.083892]
[1728509572044,0.97383396,60744.0,60743.0,0.083892]
[1728509572495,0.98783396,60744.0,60743.0,0.083892]
[1728509573602,1.00183396,60744.0,60743.0,0.083892]
[1728509574311,0.87975996,60744.0,60743.0,0.083892]
[1728509577284,0.86575996,60744.0,60743.0,0.083892]
[1728509577513,0.83775996,60744.0,60743.0,0.083892]
[1728509577742,0.83775996,60744.0,60732.0,0.32698644]
[1728509577743,0.12314182,60733.0,60732.0,0.32698644]
[1728509577981,0.46393275,60733.0,60732.0,0.24778644]
[1728509578228,0.46393275,60733.0,60730.0,0.001634]
[1728509578475,0.16466,60731.0,60730.0,0.001634]
[1728509578750,0.34079593,60731.0,60730.0,0.001634]
[1728509578988,0.17613593,60731.0,60730.0,0.001634]
[1728509579733,0.17613593,60731.0,60730.0,0.083894]
[1728509580208,0.19013593,60731.0,60730.0,0.083894]
[1728509581139,0.20313593,60731.0,60730.0,0.083894]
[1728509583265,0.2031007,60731.0,60730.0,0.083894]
[1728509583709,0.2031007,60731.0,60730.0,0.08371482]
[1728509584411,0.2031007,60731.0,60730.0,0.24837782]
[1728509587819,0.25193983,60731.0,60730.0,0.08371482]
[1728509588036,0.2031007,60731.0,60730.0,0.08371482]
[1728509588255,0.25192581,60731.0,60730.0,0.08371482]
[1728509588485,0.31797481,60731.0,60730.0,0.08371482]
[1728509589625,0.09108817,60731.0,60730.0,0.32467782]
[1728509591854,0.04226306,60731.0,60730.0,0.32467782]
[1728509592307,0.027,60731.0,60730.0,0.41717782]
[1728509592947,0.013,60731.0,60730.0,0.41717782]
[1728509593418,0.014,60731.0,60730.0,0.41717782]
[1728509593641,0.014,60731.0,60730.0,0.67801546]
[1728509593864,0.002,60731.0,60730.0,0.67801546]
[1728509594549,0.003,60731.0,60730.0,0.67801546]